[Event "*** SCC Grand Prix: Titled Tuesday Blitz"]
[Site "Chess.com"]
[Date "2020.06.23"]
[Round "5"]
[White "Azatic"]
[Black "killer311"]
[Result "0-1"]
[WhiteElo "2552"]
[BlackElo "2415"]
[TimeControl "180+1"]
[EndTime "10:56:45 PDT"]
[Termination "killer311 won by checkmate"]

1. e4 {[%clk 0:03:00.9]} 1... c6 {[%clk 0:02:58.3]} 2. d4 {[%clk 0:03:00.1]}
2... d5 {[%clk 0:02:58.7]} 3. e5 {[%clk 0:03:00.4]} 3... Bf5 {[%clk 0:02:57.7]}
4. Nf3 {[%clk 0:03:00.7]} 4... e6 {[%clk 0:02:57.7]} 5. Be2 {[%clk 0:03:00.7]}
5... c5 {[%clk 0:02:57.1]} 6. O-O {[%clk 0:03:00]} 6... Nc6 {[%clk 0:02:56.3]}
7. Nc3 {[%clk 0:03:00.3]} 7... cxd4 {[%clk 0:02:55.7]} 8. Nxd4 {[%clk 0:03:00]}
8... Nxd4 {[%clk 0:02:56.6]} 9. Qxd4 {[%clk 0:03:00.5]} 9... Ne7 {[%clk
0:02:57.1]} 10. Qa4+ {[%clk 0:02:38]} 10... Nc6 {[%clk 0:02:56.6]} 11. Be3
{[%clk 0:02:29.8]} 11... Be7 {[%clk 0:02:52.6]} 12. Rfd1 {[%clk 0:02:16.6]}
12... O-O {[%clk 0:02:51.5]} 13. Rac1 {[%clk 0:02:12.9]} 13... Nxe5 {[%clk
0:02:50.4]} 14. Nxd5 {[%clk 0:01:47.8]} 14... exd5 {[%clk 0:02:45.3]} 15. Qf4
{[%clk 0:01:47.3]} 15... Be4 {[%clk 0:02:13]} 16. Qxe5 {[%clk 0:01:43.3]} 16...
Bf6 {[%clk 0:02:13]} 17. Qg3 {[%clk 0:01:22.6]} 17... Bxb2 {[%clk 0:02:11.7]}
18. Bd4 {[%clk 0:01:23]} 18... Bxd4 {[%clk 0:02:09]} 19. Rxd4 {[%clk 0:01:23.9]}
19... Qf6 {[%clk 0:02:07.2]} 20. c3 {[%clk 0:01:04.9]} 20... Rac8 {[%clk
0:02:05.8]} 21. Rcd1 {[%clk 0:01:04.2]} 21... Rfe8 {[%clk 0:01:59.3]} 22. h3
{[%clk 0:01:00.3]} 22... b6 {[%clk 0:01:46.2]} 23. Bf1 {[%clk 0:00:54.8]} 23...
h6 {[%clk 0:01:43.8]} 24. Bb5 {[%clk 0:00:50.5]} 24... Re7 {[%clk 0:01:27.5]}
25. c4 {[%clk 0:00:43.4]} 25... dxc4 {[%clk 0:01:19.8]} 26. Bxc4 {[%clk
0:00:34.7]} 26... Bc2 {[%clk 0:01:04.6]} 27. R1d2 {[%clk 0:00:26.6]} 27... Bg6
{[%clk 0:01:04.3]} 28. Kh2 {[%clk 0:00:22.5]} 28... Kh7 {[%clk 0:01:01]} 29. Bb3
{[%clk 0:00:20.6]} 29... Rec7 {[%clk 0:00:54.6]} 30. Rf4 {[%clk 0:00:17.4]}
30... Qe7 {[%clk 0:00:51.4]} 31. Qg4 {[%clk 0:00:13]} 31... Qg5 {[%clk
0:00:49.6]} 32. Qxg5 {[%clk 0:00:12.2]} 32... hxg5 {[%clk 0:00:50.5]} 33. Rfd4
{[%clk 0:00:12.7]} 33... f6 {[%clk 0:00:50.3]} 34. Rd7 {[%clk 0:00:12.6]} 34...
Bf5 {[%clk 0:00:49.7]} 35. Rxc7 {[%clk 0:00:12.1]} 35... Rxc7 {[%clk 0:00:50.6]}
36. Kg3 {[%clk 0:00:12]} 36... Rc3+ {[%clk 0:00:49.9]} 37. Kh2 {[%clk
0:00:11.8]} 37... a5 {[%clk 0:00:49.5]} 38. Rd8 {[%clk 0:00:11.1]} 38... Rd3
{[%clk 0:00:46.9]} 39. Rb8 {[%clk 0:00:10]} 39... Rd6 {[%clk 0:00:45.1]} 40. g4
{[%clk 0:00:08.4]} 40... Be4 {[%clk 0:00:44.5]} 41. Kg3 {[%clk 0:00:08.2]} 41...
Rd3+ {[%clk 0:00:43.2]} 42. Kh2 {[%clk 0:00:08]} 42... Rf3 {[%clk 0:00:41.7]}
43. Kg1 {[%clk 0:00:05.1]} 43... Rxh3 {[%clk 0:00:40]} 44. Bg8+ {[%clk
0:00:05.4]} 44... Kg6 {[%clk 0:00:37.5]} 45. Rxb6 {[%clk 0:00:06.3]} 45... Rh1#
{[%clk 0:00:37.2]} 0-1

[Event "*** SCC Grand Prix: Titled Tuesday Blitz"]
[Site "Chess.com"]
[Date "2020.06.23"]
[Round "5"]
[White "bgfbfbgfbgfgf"]
[Black "reutik"]
[Result "1/2-1/2"]
[WhiteElo "2611"]
[BlackElo "2430"]
[TimeControl "180+1"]
[EndTime "10:56:49 PDT"]
[Termination "Game drawn by repetition"]

1. e4 {[%clk 0:03:00.9]} 1... e5 {[%clk 0:03:00.1]} 2. Nf3 {[%clk 0:03:00.5]}
2... Nc6 {[%clk 0:03:00.3]} 3. Bb5 {[%clk 0:03:00.8]} 3... Nf6 {[%clk
0:03:00.4]} 4. O-O {[%clk 0:03:00.2]} 4... Nxe4 {[%clk 0:03:00.3]} 5. Re1 {[%clk
0:02:59.7]} 5... Nd6 {[%clk 0:02:59.7]} 6. Nxe5 {[%clk 0:02:56.2]} 6... Nxe5
{[%clk 0:02:56.9]} 7. Rxe5+ {[%clk 0:02:57.1]} 7... Be7 {[%clk 0:02:57.3]} 8.
Bf1 {[%clk 0:02:55.2]} 8... O-O {[%clk 0:02:56.5]} 9. d4 {[%clk 0:02:55.6]} 9...
Bf6 {[%clk 0:02:54.7]} 10. Re1 {[%clk 0:02:55.6]} 10... Nf5 {[%clk 0:02:51.5]}
11. d5 {[%clk 0:02:55]} 11... d6 {[%clk 0:02:47.2]} 12. c4 {[%clk 0:02:53.8]}
12... h6 {[%clk 0:02:39.2]} 13. Nc3 {[%clk 0:02:53]} 13... Bxc3 {[%clk
0:02:30.5]} 14. bxc3 {[%clk 0:02:53.9]} 14... Qf6 {[%clk 0:02:28.7]} 15. Qc2
{[%clk 0:02:48]} 15... b6 {[%clk 0:02:27.4]} 16. Bf4 {[%clk 0:02:41]} 16... Bd7
{[%clk 0:02:20.4]} 17. Bd3 {[%clk 0:02:33.3]} 17... Rfe8 {[%clk 0:02:17.7]} 18.
Bd2 {[%clk 0:02:32.3]} 18... a5 {[%clk 0:02:10.6]} 19. h3 {[%clk 0:02:23.9]}
19... Nh4 {[%clk 0:02:08.3]} 20. Be3 {[%clk 0:02:09.1]} 20... Nf5 {[%clk
0:01:48.8]} 21. Bxf5 {[%clk 0:01:33]} 21... Qxf5 {[%clk 0:01:46.7]} 22. Qd2
{[%clk 0:01:33.9]} 22... Re4 {[%clk 0:01:40.7]} 23. Bd4 {[%clk 0:01:33.2]} 23...
Rae8 {[%clk 0:01:38.6]} 24. f3 {[%clk 0:01:30.8]} 24... Rxe1+ {[%clk 0:01:31.5]}
25. Rxe1 {[%clk 0:01:31.7]} 25... Rxe1+ {[%clk 0:01:30]} 26. Qxe1 {[%clk
0:01:32.6]} 26... Kf8 {[%clk 0:01:29.5]} 27. h4 {[%clk 0:01:15]} 27... f6 {[%clk
0:01:23.9]} 28. Qe2 {[%clk 0:01:00.9]} 28... Ba4 {[%clk 0:01:08.7]} 29. Qe3
{[%clk 0:00:41.1]} 29... Qb1+ {[%clk 0:00:46.7]} 30. Kh2 {[%clk 0:00:40.8]}
30... Qxa2 {[%clk 0:00:46.5]} 31. Bxf6 {[%clk 0:00:41]} 31... gxf6 {[%clk
0:00:44.2]} 32. Qxh6+ {[%clk 0:00:41.3]} 32... Ke7 {[%clk 0:00:38.4]} 33. Qg7+
{[%clk 0:00:41.4]} 33... Kd8 {[%clk 0:00:37.7]} 34. Qxf6+ {[%clk 0:00:41.2]}
34... Kc8 {[%clk 0:00:38]} 35. h5 {[%clk 0:00:39.9]} 35... Bc2 {[%clk 0:00:29]}
36. Qe6+ {[%clk 0:00:13.5]} 36... Kb7 {[%clk 0:00:27.7]} 37. Qe2 {[%clk
0:00:13.8]} 37... a4 {[%clk 0:00:23.7]} 38. h6 {[%clk 0:00:13.7]} 38... Qb1
{[%clk 0:00:23.2]} 39. Qe8 {[%clk 0:00:12.5]} 39... a3 {[%clk 0:00:17.8]} 40.
Qc6+ {[%clk 0:00:12.5]} 40... Kb8 {[%clk 0:00:17.7]} 41. Qe8+ {[%clk 0:00:12.7]}
41... Kb7 {[%clk 0:00:16.7]} 42. Qc6+ {[%clk 0:00:12.7]} 42... Kb8 {[%clk
0:00:16.9]} 43. Qe8+ {[%clk 0:00:13.1]} 43... Kb7 {[%clk 0:00:17.2]} 1/2-1/2

[Event "*** SCC Grand Prix: Titled Tuesday Blitz"]
[Site "Chess.com"]
[Date "2020.06.23"]
[Round "5"]
[White "Fandorine"]
[Black "Gurvich_Vitaly"]
[Result "1-0"]
[WhiteElo "2886"]
[BlackElo "2549"]
[TimeControl "180+1"]
[EndTime "10:56:50 PDT"]
[Termination "Fandorine won by resignation"]

1. e4 {[%clk 0:03:00.9]} 1... c5 {[%clk 0:02:58.4]} 2. Nf3 {[%clk 0:03:00]} 2...
Nc6 {[%clk 0:02:58.6]} 3. Bb5 {[%clk 0:02:59.4]} 3... g6 {[%clk 0:02:57.7]} 4.
O-O {[%clk 0:02:59.3]} 4... Bg7 {[%clk 0:02:57.5]} 5. c3 {[%clk 0:02:59.2]} 5...
e5 {[%clk 0:02:55.1]} 6. d4 {[%clk 0:02:58.5]} 6... exd4 {[%clk 0:02:54.1]} 7.
cxd4 {[%clk 0:02:57.3]} 7... cxd4 {[%clk 0:02:51.8]} 8. Bf4 {[%clk 0:02:56.8]}
8... Nge7 {[%clk 0:02:49.4]} 9. Bd6 {[%clk 0:02:55.5]} 9... O-O {[%clk
0:02:49.4]} 10. Nbd2 {[%clk 0:02:55.5]} 10... a6 {[%clk 0:02:47.5]} 11. Bc4
{[%clk 0:02:55.3]} 11... Re8 {[%clk 0:02:44.3]} 12. Bxf7+ {[%clk 0:02:26]} 12...
Kxf7 {[%clk 0:02:39.1]} 13. Ng5+ {[%clk 0:02:20.5]} 13... Kg8 {[%clk 0:02:37.8]}
14. Qb3+ {[%clk 0:02:20.1]} 14... Nd5 {[%clk 0:02:37.6]} 15. Qxd5+ {[%clk
0:02:19]} 15... Re6 {[%clk 0:02:37.2]} 16. Bg3 {[%clk 0:02:01.8]} 16... Qe8
{[%clk 0:01:38]} 17. Nxe6 {[%clk 0:01:57.4]} 17... dxe6 {[%clk 0:01:37.8]} 18.
Qb3 {[%clk 0:01:57.2]} 18... b5 {[%clk 0:01:35.1]} 19. Rac1 {[%clk 0:01:54.2]}
19... Bd7 {[%clk 0:01:35.2]} 20. a3 {[%clk 0:01:53.1]} 20... h6 {[%clk
0:01:30.3]} 21. Rfe1 {[%clk 0:01:26.1]} 21... Kh7 {[%clk 0:01:29.2]} 22. e5
{[%clk 0:01:26.1]} 22... Qb8 {[%clk 0:01:15]} 23. Ne4 {[%clk 0:01:18.2]} 23...
Nxe5 {[%clk 0:00:45.1]} 24. Rc5 {[%clk 0:01:11]} 24... Qh8 {[%clk 0:00:26.6]}
25. Bxe5 {[%clk 0:00:33.8]} 25... Bxe5 {[%clk 0:00:26]} 26. Ng5+ {[%clk
0:00:33.9]} 26... hxg5 {[%clk 0:00:25.3]} 27. Rcxe5 {[%clk 0:00:34.5]} 27... Rc8
{[%clk 0:00:20.4]} 28. Qd1 {[%clk 0:00:30.1]} 28... Qf6 {[%clk 0:00:10.5]} 29.
Qxd4 {[%clk 0:00:29.2]} 29... Rc7 {[%clk 0:00:10.5]} 30. Qd2 {[%clk 0:00:23.3]}
30... g4 {[%clk 0:00:09]} 31. R5e4 {[%clk 0:00:19.2]} 31... e5 {[%clk 0:00:07]}
32. Rxe5 {[%clk 0:00:18]} 32... Bf5 {[%clk 0:00:07.2]} 33. Qe3 {[%clk
0:00:15.2]} 33... Rf7 {[%clk 0:00:06.7]} 34. Re7 {[%clk 0:00:15.2]} 34... Kg8
{[%clk 0:00:03]} 35. Rxf7 {[%clk 0:00:15]} 35... Kxf7 {[%clk 0:00:03.9]} 36.
Qe8+ {[%clk 0:00:15.1]} 36... Kg7 {[%clk 0:00:04.2]} 37. Qe7+ {[%clk 0:00:15.2]}
37... Qxe7 {[%clk 0:00:02.9]} 38. Rxe7+ {[%clk 0:00:16.1]} 38... Kf6 {[%clk
0:00:03.8]} 39. Ra7 {[%clk 0:00:15.2]} 1-0

[Event "*** SCC Grand Prix: Titled Tuesday Blitz"]
[Site "Chess.com"]
[Date "2020.06.23"]
[Round "5"]
[White "davigator"]
[Black "zurzan"]
[Result "1-0"]
[WhiteElo "2305"]
[BlackElo "1935"]
[TimeControl "180+1"]
[EndTime "10:56:50 PDT"]
[Termination "davigator won by resignation"]

1. e4 {[%clk 0:03:00.9]} 1... Nf6 {[%clk 0:02:58.8]} 2. e5 {[%clk 0:03:00.2]}
2... Nd5 {[%clk 0:02:57.9]} 3. d4 {[%clk 0:03:00.4]} 3... d6 {[%clk 0:02:57.8]}
4. c4 {[%clk 0:02:59.8]} 4... Nb6 {[%clk 0:02:57.1]} 5. f4 {[%clk 0:03:00.2]}
5... dxe5 {[%clk 0:02:56.6]} 6. fxe5 {[%clk 0:03:01.1]} 6... Nc6 {[%clk
0:02:56.4]} 7. Be3 {[%clk 0:03:01.5]} 7... Bf5 {[%clk 0:02:55.2]} 8. Nc3 {[%clk
0:02:59.3]} 8... e6 {[%clk 0:02:55.2]} 9. Qd2 {[%clk 0:02:57.8]} 9... Be7 {[%clk
0:02:55]} 10. Be2 {[%clk 0:02:57.3]} 10... O-O {[%clk 0:02:54.1]} 11. Nf3 {[%clk
0:02:56.2]} 11... f6 {[%clk 0:02:46.1]} 12. exf6 {[%clk 0:02:54.7]} 12... Bxf6
{[%clk 0:02:45.8]} 13. O-O {[%clk 0:02:55.3]} 13... Bg4 {[%clk 0:02:26.1]} 14.
Rad1 {[%clk 0:02:48.5]} 14... Qe8 {[%clk 0:02:22]} 15. Nb5 {[%clk 0:02:24.3]}
15... Rc8 {[%clk 0:02:17.3]} 16. d5 {[%clk 0:02:13]} 16... exd5 {[%clk
0:02:15.9]} 17. cxd5 {[%clk 0:02:13.1]} 17... Ne7 {[%clk 0:02:05.5]} 18. Nxa7
{[%clk 0:02:10.5]} 18... Nexd5 {[%clk 0:02:00.8]} 19. Bc5 {[%clk 0:02:06.4]}
19... Rd8 {[%clk 0:01:45.9]} 20. Bxf8 {[%clk 0:02:04.4]} 20... Qxf8 {[%clk
0:01:43.1]} 21. Qc1 {[%clk 0:01:31.4]} 21... Qe7 {[%clk 0:01:31.8]} 22. Rfe1
{[%clk 0:01:21.4]} 22... Qb4 {[%clk 0:01:00.3]} 23. b3 {[%clk 0:01:12.5]} 23...
c6 {[%clk 0:00:58]} 24. Bc4 {[%clk 0:00:58.6]} 24... Qa5 {[%clk 0:00:56.4]} 25.
Nxc6 {[%clk 0:00:51.3]} 25... bxc6 {[%clk 0:00:55.8]} 26. a4 {[%clk 0:00:51.8]}
26... Nxc4 {[%clk 0:00:52.3]} 27. bxc4 {[%clk 0:00:51.1]} 27... Nc3 {[%clk
0:00:49.2]} 28. Rxd8+ {[%clk 0:00:50.9]} 28... Qxd8 {[%clk 0:00:48.4]} 29. Qc2
{[%clk 0:00:40.4]} 29... Qb6+ {[%clk 0:00:47.9]} 30. Kh1 {[%clk 0:00:39.2]}
30... g6 {[%clk 0:00:40]} 31. h3 {[%clk 0:00:31.5]} 31... Bf5 {[%clk 0:00:39.4]}
32. Qd2 {[%clk 0:00:30.7]} 32... Ne4 {[%clk 0:00:32]} 33. Qe3 {[%clk 0:00:29.1]}
33... Qxe3 {[%clk 0:00:25.5]} 34. Rxe3 {[%clk 0:00:29.1]} 34... Kf7 {[%clk
0:00:22.4]} 35. a5 {[%clk 0:00:28.6]} 35... Bc8 {[%clk 0:00:20.5]} 36. Rxe4
{[%clk 0:00:27.1]} 36... Ba6 {[%clk 0:00:19.8]} 37. c5 {[%clk 0:00:25.9]} 37...
Be7 {[%clk 0:00:14.7]} 38. Ne5+ {[%clk 0:00:24.3]} 38... Ke6 {[%clk 0:00:14]}
39. Nxc6+ {[%clk 0:00:24.5]} 39... Kd5 {[%clk 0:00:13.4]} 40. Rxe7 {[%clk
0:00:24.5]} 40... Kxc6 {[%clk 0:00:13.3]} 41. Rxh7 {[%clk 0:00:25.2]} 41... Kxc5
{[%clk 0:00:13.2]} 42. Rg7 {[%clk 0:00:25.5]} 42... Bd3 {[%clk 0:00:13.1]} 43.
a6 {[%clk 0:00:24]} 43... Bxa6 {[%clk 0:00:09.9]} 44. Rxg6 {[%clk 0:00:23.8]}
44... Bb7 {[%clk 0:00:09.6]} 45. h4 {[%clk 0:00:23.2]} 1-0

[Event "*** SCC Grand Prix: Titled Tuesday Blitz"]
[Site "Chess.com"]
[Date "2020.06.23"]
[Round "5"]
[White "PowerThinking2650"]
[Black "HunterBRR"]
[Result "1-0"]
[WhiteElo "2319"]
[BlackElo "2087"]
[TimeControl "180+1"]
[EndTime "10:56:50 PDT"]
[Termination "PowerThinking2650 won on time"]

1. e4 {[%clk 0:03:00.9]} 1... c5 {[%clk 0:02:58.7]} 2. Nf3 {[%clk 0:03:00.1]}
2... Nc6 {[%clk 0:02:58.3]} 3. d4 {[%clk 0:03:00.2]} 3... cxd4 {[%clk
0:02:59.2]} 4. Nxd4 {[%clk 0:03:00.6]} 4... Nf6 {[%clk 0:02:58.8]} 5. Nc3 {[%clk
0:03:00.1]} 5... e5 {[%clk 0:02:58.4]} 6. Ndb5 {[%clk 0:02:59.9]} 6... d6 {[%clk
0:02:57.2]} 7. Bg5 {[%clk 0:02:59.4]} 7... a6 {[%clk 0:02:56.7]} 8. Na3 {[%clk
0:02:59]} 8... b5 {[%clk 0:02:56.3]} 9. Nd5 {[%clk 0:02:59.1]} 9... Be7 {[%clk
0:02:53.8]} 10. Bxf6 {[%clk 0:02:59.1]} 10... Bxf6 {[%clk 0:02:53.1]} 11. c3
{[%clk 0:02:59.7]} 11... O-O {[%clk 0:02:51.3]} 12. Nc2 {[%clk 0:02:57.3]} 12...
Rb8 {[%clk 0:02:47.7]} 13. h4 {[%clk 0:02:56.2]} 13... Be6 {[%clk 0:02:42.5]}
14. b4 {[%clk 0:02:49.6]} 14... Be7 {[%clk 0:02:30.2]} 15. a4 {[%clk 0:02:43]}
15... Qd7 {[%clk 0:02:20.7]} 16. axb5 {[%clk 0:02:40]} 16... axb5 {[%clk
0:02:21.6]} 17. Nce3 {[%clk 0:02:38.4]} 17... Rfc8 {[%clk 0:02:03.2]} 18. Bd3
{[%clk 0:02:24.1]} 18... Bd8 {[%clk 0:01:59.4]} 19. g3 {[%clk 0:02:05.8]} 19...
Ne7 {[%clk 0:01:57.7]} 20. h5 {[%clk 0:01:41.7]} 20... h6 {[%clk 0:01:53.4]} 21.
Ra3 {[%clk 0:01:06.4]} 21... Bxd5 {[%clk 0:01:46.3]} 22. Nxd5 {[%clk 0:01:03.3]}
22... Nxd5 {[%clk 0:01:45.1]} 23. exd5 {[%clk 0:01:03.4]} 23... f5 {[%clk
0:01:30]} 24. g4 {[%clk 0:01:02.1]} 24... e4 {[%clk 0:01:20.7]} 25. Bc2 {[%clk
0:00:51.4]} 25... Bf6 {[%clk 0:01:18.8]} 26. Rh3 {[%clk 0:00:46.6]} 26... fxg4
{[%clk 0:01:00.5]} 27. Rg3 {[%clk 0:00:38.7]} 27... Ra8 {[%clk 0:00:52.3]} 28.
Rxa8 {[%clk 0:00:33.5]} 28... Rxa8 {[%clk 0:00:51.8]} 29. Kf1 {[%clk 0:00:29.9]}
29... Rc8 {[%clk 0:00:45.6]} 30. Bxe4 {[%clk 0:00:25.1]} 30... Rxc3 {[%clk
0:00:27.2]} 31. Rxc3 {[%clk 0:00:19.7]} 31... Bxc3 {[%clk 0:00:28.1]} 32. Qd3
{[%clk 0:00:18.1]} 32... Bxb4 {[%clk 0:00:16.8]} 33. Bf5 {[%clk 0:00:16.2]}
33... Qe7 {[%clk 0:00:12.4]} 34. Be6+ {[%clk 0:00:14.1]} 34... Kh8 {[%clk
0:00:10.9]} 35. Qxb5 {[%clk 0:00:13.2]} 35... g6 {[%clk 0:00:01.8]} 36. Qxb4
{[%clk 0:00:11.9]} 36... gxh5 {[%clk 0:00:01.1]} 37. Qd4+ {[%clk 0:00:11.5]} 1-0

[Event "*** SCC Grand Prix: Titled Tuesday Blitz"]
[Site "Chess.com"]
[Date "2020.06.23"]
[Round "5"]
[White "Mbneu"]
[Black "larbiben"]
[Result "1-0"]
[WhiteElo "2189"]
[BlackElo "2016"]
[TimeControl "180+1"]
[EndTime "10:56:51 PDT"]
[Termination "Mbneu won by resignation"]

1. d4 {[%clk 0:02:22.9]} 1... d5 {[%clk 0:02:58.4]} 2. c4 {[%clk 0:02:22]} 2...
c6 {[%clk 0:02:58.6]} 3. Nc3 {[%clk 0:02:22.1]} 3... dxc4 {[%clk 0:02:58.5]} 4.
e4 {[%clk 0:02:21.3]} 4... e5 {[%clk 0:02:58.3]} 5. dxe5 {[%clk 0:02:14]} 5...
Qxd1+ {[%clk 0:02:57.6]} 6. Nxd1 {[%clk 0:02:14]} 6... Be6 {[%clk 0:02:58.5]} 7.
f4 {[%clk 0:02:12.1]} 7... g6 {[%clk 0:02:56.4]} 8. Ne3 {[%clk 0:02:02]} 8...
Na6 {[%clk 0:02:48.4]} 9. f5 {[%clk 0:02:01.5]} 9... gxf5 {[%clk 0:02:47]} 10.
exf5 {[%clk 0:02:01]} 10... Bd5 {[%clk 0:02:47.1]} 11. Bxc4 {[%clk 0:01:57.3]}
11... Bb4+ {[%clk 0:02:37.7]} 12. Kf2 {[%clk 0:01:52.8]} 12... O-O-O {[%clk
0:02:32.3]} 13. Bxd5 {[%clk 0:01:51.3]} 13... cxd5 {[%clk 0:02:31.3]} 14. Nf3
{[%clk 0:01:49.3]} 14... d4 {[%clk 0:02:28.8]} 15. Nc4 {[%clk 0:01:44.7]} 15...
Bc5 {[%clk 0:02:26.8]} 16. Bg5 {[%clk 0:01:36.3]} 16... d3+ {[%clk 0:02:23.6]}
17. Ne3 {[%clk 0:01:31.5]} 17... Be7 {[%clk 0:02:18]} 18. Rac1+ {[%clk
0:01:28.3]} 18... Kb8 {[%clk 0:02:17]} 19. Rhd1 {[%clk 0:01:27.4]} 19... h6
{[%clk 0:02:06]} 20. Bf4 {[%clk 0:01:23.1]} 20... Bc5 {[%clk 0:01:59.1]} 21. a3
{[%clk 0:01:22.2]} 21... Ka8 {[%clk 0:01:54.7]} 22. b4 {[%clk 0:01:21.5]} 22...
Bb6 {[%clk 0:01:54.6]} 23. Rc3 {[%clk 0:01:16.5]} 23... Ne7 {[%clk 0:01:50.8]}
24. g4 {[%clk 0:01:14.9]} 24... Nd5 {[%clk 0:01:40.7]} 25. Rc4 {[%clk
0:01:03.8]} 25... Nxf4 {[%clk 0:01:36.6]} 26. Rxf4 {[%clk 0:01:02.8]} 26... Nc7
{[%clk 0:01:36.5]} 27. Re4 {[%clk 0:00:50.9]} 27... Nd5 {[%clk 0:01:35.1]} 28.
Rxd3 {[%clk 0:00:50.2]} 28... Nxe3 {[%clk 0:01:31.3]} 29. Rdxe3 {[%clk
0:00:50.1]} 29... Rd3 {[%clk 0:01:28.8]} 30. Ke2 {[%clk 0:00:49.1]} 30... Rxe3+
{[%clk 0:01:25.6]} 31. Rxe3 {[%clk 0:00:50]} 31... Bxe3 {[%clk 0:01:24.7]} 32.
Kxe3 {[%clk 0:00:50.6]} 32... Rg8 {[%clk 0:01:23.6]} 33. Kf4 {[%clk 0:00:50]}
33... b6 {[%clk 0:01:22.1]} 34. g5 {[%clk 0:00:50.1]} 34... hxg5+ {[%clk
0:01:19.2]} 35. Nxg5 {[%clk 0:00:50.4]} 35... a5 {[%clk 0:01:18.6]} 36. Nxf7
{[%clk 0:00:48.8]} 36... axb4 {[%clk 0:01:17.3]} 37. axb4 {[%clk 0:00:49.7]}
37... Kb7 {[%clk 0:01:15.2]} 38. f6 {[%clk 0:00:47.8]} 38... Kc6 {[%clk
0:01:09]} 39. e6 {[%clk 0:00:47.8]} 39... Rg1 {[%clk 0:01:07.5]} 40. Kf5 {[%clk
0:00:44.5]} 40... Kd5 {[%clk 0:01:05.1]} 41. e7 {[%clk 0:00:42.6]} 41... Rf1+
{[%clk 0:01:04.3]} 42. Kg6 {[%clk 0:00:41.9]} 42... Re1 {[%clk 0:01:04.6]} 43.
Nd8 {[%clk 0:00:39.9]} 43... Kd6 {[%clk 0:01:04.2]} 44. Kf7 {[%clk 0:00:32]}
44... Kd7 {[%clk 0:01:03.6]} 45. Kf8 {[%clk 0:00:25.4]} 45... Re2 {[%clk
0:01:01.6]} 46. Nf7 {[%clk 0:00:24.1]} 46... Re1 {[%clk 0:00:59.8]} 47. h4
{[%clk 0:00:23.6]} 47... Re4 {[%clk 0:00:57.3]} 48. h5 {[%clk 0:00:23.6]} 48...
Re6 {[%clk 0:00:56.9]} 49. h6 {[%clk 0:00:22.1]} 49... Re1 {[%clk 0:00:56.2]}
50. h7 {[%clk 0:00:22]} 50... Re2 {[%clk 0:00:45.5]} 51. h8=Q {[%clk 0:00:21]}
51... Re6 {[%clk 0:00:44.5]} 52. Qh3 {[%clk 0:00:19.3]} 52... b5 {[%clk
0:00:44.3]} 53. Qf5 {[%clk 0:00:19.1]} 53... Kc7 {[%clk 0:00:41.6]} 54. Qxe6
{[%clk 0:00:19.5]} 1-0

[Event "*** SCC Grand Prix: Titled Tuesday Blitz"]
[Site "Chess.com"]
[Date "2020.06.23"]
[Round "5"]
[White "Kezin_Roman"]
[Black "BilodeauA"]
[Result "0-1"]
[WhiteElo "2790"]
[BlackElo "2868"]
[TimeControl "180+1"]
[EndTime "10:56:52 PDT"]
[Termination "BilodeauA won on time"]

1. d4 {[%clk 0:03:00.9]} 1... Nf6 {[%clk 0:03:00.3]} 2. c4 {[%clk 0:03:01]} 2...
e6 {[%clk 0:03:00.9]} 3. g3 {[%clk 0:03:00.7]} 3... Bb4+ {[%clk 0:02:59.3]} 4.
Bd2 {[%clk 0:03:00.3]} 4... Be7 {[%clk 0:02:59.6]} 5. Bg2 {[%clk 0:03:00.2]}
5... d5 {[%clk 0:03:00]} 6. Nf3 {[%clk 0:03:00.7]} 6... O-O {[%clk 0:03:00.6]}
7. O-O {[%clk 0:03:01]} 7... Nbd7 {[%clk 0:03:01.3]} 8. Qc2 {[%clk 0:03:01]}
8... c6 {[%clk 0:03:01.4]} 9. Rd1 {[%clk 0:03:01.4]} 9... b6 {[%clk 0:03:01.3]}
10. Bf4 {[%clk 0:03:01.8]} 10... Ba6 {[%clk 0:02:59]} 11. Ne5 {[%clk 0:03:01.4]}
11... Rc8 {[%clk 0:02:40.2]} 12. Nc3 {[%clk 0:02:59.8]} 12... Bxc4 {[%clk
0:02:36.3]} 13. Nxc4 {[%clk 0:02:59.3]} 13... dxc4 {[%clk 0:02:37.2]} 14. e4
{[%clk 0:02:58.7]} 14... b5 {[%clk 0:02:37.2]} 15. a4 {[%clk 0:02:58.7]} 15...
a6 {[%clk 0:02:34.8]} 16. axb5 {[%clk 0:02:58.6]} 16... axb5 {[%clk 0:02:35.7]}
17. d5 {[%clk 0:02:59.1]} 17... cxd5 {[%clk 0:02:31.6]} 18. exd5 {[%clk
0:02:58.5]} 18... e5 {[%clk 0:02:32]} 19. Bg5 {[%clk 0:02:58.7]} 19... Qb6
{[%clk 0:02:28.1]} 20. Bh3 {[%clk 0:02:51.4]} 20... Bc5 {[%clk 0:01:20]} 21.
Bxf6 {[%clk 0:02:26.1]} 21... Nxf6 {[%clk 0:01:20.9]} 22. Bxc8 {[%clk
0:02:26.8]} 22... Rxc8 {[%clk 0:01:21.8]} 23. d6 {[%clk 0:02:27.7]} 23... Bd4
{[%clk 0:01:15.7]} 24. Qf5 {[%clk 0:01:00]} 24... Rd8 {[%clk 0:01:15.4]} 25. Rd2
{[%clk 0:00:48.9]} 25... h6 {[%clk 0:01:08]} 26. d7 {[%clk 0:00:40.9]} 26... g6
{[%clk 0:00:58.8]} 27. Qf3 {[%clk 0:00:39.4]} 27... Rxd7 {[%clk 0:00:51.6]} 28.
Kg2 {[%clk 0:00:17.1]} 28... Kg7 {[%clk 0:00:51.1]} 29. Rad1 {[%clk 0:00:15.7]}
29... b4 {[%clk 0:00:50.9]} 30. Ne2 {[%clk 0:00:14.9]} 30... Qc5 {[%clk
0:00:32.5]} 31. h3 {[%clk 0:00:13.4]} 31... Rd6 {[%clk 0:00:28.6]} 32. Rc2
{[%clk 0:00:09.5]} 32... Nh7 {[%clk 0:00:19.5]} 33. Rdc1 {[%clk 0:00:07.3]}
33... Rf6 {[%clk 0:00:18.7]} 34. Qb7 {[%clk 0:00:04.3]} 34... Rxf2+ {[%clk
0:00:18.5]} 35. Kh1 {[%clk 0:00:04.9]} 35... Be3 {[%clk 0:00:11.4]} 36. Rxc4
{[%clk 0:00:04.2]} 36... Qd6 {[%clk 0:00:12]} 37. Re1 {[%clk 0:00:02.2]} 37...
Qe6 {[%clk 0:00:12]} 0-1